bitfinex-derivatives/quotes_BTCF0:USTF0_20250222
["timestamp","ask_amount","ask_price","bid_price","bid_amount"]
[1740217582759,0.001,96452.0,96451.0,0.7022565]
[1740217587055,0.001,96452.0,96451.0,0.7122565]
[1740217601659,0.001,96452.0,96451.0,1.0730565]
[1740217605065,0.00015549,96462.0,96451.0,0.86566]
[1740217605265,0.00015549,96462.0,96461.0,0.568175]
[1740217605568,0.00015549,96462.0,96461.0,0.670895]
[1740217605764,0.00015549,96462.0,96461.0,0.701995]
[1740217608969,0.00015549,96462.0,96461.0,0.71259824]
[1740217609862,0.00015549,96462.0,96461.0,0.72880622]
[1740217610368,0.00015549,96462.0,96461.0,0.71259824]
[1740217618375,0.3199736,96494.0,96481.0,0.207332]
[1740217618584,0.2073262,96484.0,96481.0,0.568132]
[1740217618778,0.0304,96493.0,96481.0,0.568132]
[1740217618982,0.0304,96483.0,96481.0,0.599132]
[1740217619278,0.21712909,96483.0,96481.0,0.3918]
[1740217619478,0.21712909,96483.0,96482.0,0.2073298]
[1740217620569,0.21712909,96483.0,96482.0,0.2083298]
[1740217621484,0.21712909,96483.0,96482.0,0.2093298]
[1740217623583,0.0304,96483.0,96482.0,0.2093298]
[1740217625088,0.0304,96483.0,96482.0,0.2395298]
[1740217625680,0.2172936,96491.0,96490.0,0.2073126]
[1740217625876,0.2172936,96491.0,96490.0,0.5681126]
[1740217626284,0.2172936,96491.0,96490.0,0.6011126]
[1740217627188,0.0311,96493.0,96491.0,0.2073105]
[1740217628782,0.0311,96493.0,96491.0,0.2083105]
[1740217628982,0.0311,96493.0,96491.0,0.2093105]
[1740217629386,0.0311,96493.0,96491.0,0.2083105]
[1740217629578,0.0311,96493.0,96491.0,0.2093105]
[1740217629786,1e-08,96492.0,96491.0,0.2093105]
[1740217630581,1e-08,96492.0,96491.0,0.2083105]
[1740217631081,1e-08,96492.0,96491.0,0.2073105]
[1740217636192,0.20730831,96492.0,96491.0,0.2073105]
[1740217636391,0.23990831,96492.0,96491.0,0.2073105]
[1740217637188,0.03260001,96492.0,96491.0,0.2073105]
[1740217637791,0.23990831,96492.0,96491.0,0.2073105]
[1740217638995,0.03260001,96492.0,96491.0,0.2073105]
[1740217639380,0.23990831,96492.0,96491.0,0.2073105]
[1740217639893,0.03260001,96492.0,96491.0,0.2073105]
[1740217642086,0.23990831,96492.0,96491.0,0.2073105]
[1740217644795,0.03260001,96492.0,96491.0,0.2073105]
[1740217645093,0.23990831,96492.0,96491.0,0.2073105]
[1740217647701,0.03260001,96492.0,96491.0,0.2073105]
[1740217647902,1e-08,96492.0,96491.0,0.2379105]
[1740217648403,1e-08,96492.0,96491.0,0.25411425]
[1740217649206,1e-08,96492.0,96491.0,0.2379105]
[1740217650504,1e-08,96492.0,96491.0,0.3404705]
[1740217651115,1e-08,96492.0,96491.0,0.35667371]
[1740217652216,1e-08,96492.0,96491.0,0.3404705]
[1740217653223,1e-08,96492.0,96491.0,0.35667309]
[1740217653914,1e-08,96492.0,96491.0,0.3404705]
[1740217654220,1e-08,96492.0,96491.0,1.07827352]
[1740217655912,1e-08,96492.0,96491.0,0.97571352]
[1740217656311,1e-08,96492.0,96491.0,1.0314705]
[1740217659822,1e-08,96492.0,96491.0,0.6706705]
[1740217662725,1e-08,96492.0,96491.0,0.5681105]
[1740217663026,1e-08,96492.0,96491.0,0.6706705]
[1740217668634,1e-08,96492.0,96491.0,0.7026705]
[1740217669024,1e-08,96492.0,96491.0,0.71887461]
[1740217669331,1e-08,96492.0,96491.0,0.9046748]
[1740217670432,1e-08,96492.0,96491.0,0.5438748]
[1740217670632,1e-08,96492.0,96491.0,0.9046748]
[1740217671032,1e-08,96492.0,96491.0,0.88847069]
[1740217672325,1e-08,96492.0,96491.0,0.90467357]
[1740217672927,1e-08,96492.0,96491.0,0.71887338]
[1740217673332,1e-08,96492.0,96491.0,0.7026705]
[1740217675333,4.711e-05,96492.0,96491.0,0.7026705]
[1740217676233,4.711e-05,96492.0,96491.0,0.7344705]
[1740217679540,4.711e-05,96492.0,96491.0,1.0952705]
[1740217679937,4.711e-05,96492.0,96491.0,1.28098067]
[1740217680442,4.711e-05,96492.0,96491.0,1.2971842]
[1740217681138,4.711e-05,96492.0,96491.0,1.28098067]
[1740217681340,4.711e-05,96492.0,96491.0,1.2971842]
[1740217682134,4.711e-05,96492.0,96491.0,1.1946242]
[1740217682334,4.711e-05,96492.0,96491.0,1.28094067]
[1740217682933,4.711e-05,96492.0,96491.0,1.0952305]
[1740217683932,4.711e-05,96492.0,96491.0,1.11143403]
[1740217684333,4.711e-05,96492.0,96491.0,1.0952305]
[1740217689545,4.711e-05,96492.0,96491.0,1.1260305]
[1740217690947,4.711e-05,96492.0,96491.0,1.0952305]
[1740217694748,4.711e-05,96492.0,96491.0,0.9927105]
[1740217694946,4.711e-05,96492.0,96491.0,1.0951905]
[1740217695459,0.20735541,96492.0,96491.0,1.0631905]
[1740217695751,0.20735541,96492.0,96491.0,0.9289105]
[1740217695962,0.21761017,96492.0,96491.0,0.9289105]
[1740217696351,0.21761017,96492.0,96491.0,0.7216]
[1740217696550,0.21761017,96492.0,96491.0,0.9289105]
[1740217697152,0.20735541,96492.0,96491.0,0.9289105]
[1740217698457,0.26972695,96492.0,96491.0,0.9289105]
[1740217698759,0.27994742,96492.0,96491.0,0.9289105]
[1740217699156,0.26972695,96492.0,96491.0,0.9289105]
[1740217700954,0.26972695,96492.0,96491.0,0.2073105]
[1740217701854,0.06241865,96492.0,96489.0,0.3608]
[1740217702052,0.2908403,96491.0,96490.0,0.2073122]
[1740217702254,0.2073126,96490.0,96489.0,0.3608]
[1740217704055,0.2073126,96490.0,96489.0,0.5681148]
[1740217705864,0.2073126,96490.0,96489.0,0.3608]
[1740217706164,0.0835277,96491.0,96483.0,0.2073273]
[1740217706165,0.2591591,96484.0,96483.0,0.2073273]
[1740217707767,0.2073277,96484.0,96483.0,0.2073273]
[1740217710768,0.2383237,96485.0,96484.0,0.2073255]
[1740217710979,0.2383234,96485.0,96484.0,0.2401255]
[1740217711268,0.031,96485.0,96484.0,0.2401255]
[1740217711861,0.2073234,96485.0,96484.0,0.2401255]
[1740217712057,0.0638,96491.0,96485.0,0.0518307]
[1740217712277,0.2591471,96490.0,96489.0,0.5681126]
[1740217714865,0.32161568,96490.0,96489.0,0.5681126]
[1740217715065,0.26978748,96490.0,96489.0,0.5681126]
[1740217715264,0.26978118,96490.0,96489.0,0.5681126]
[1740217717258,0.06246858,96490.0,96489.0,0.5681126]
[1740217717465,0.26978118,96490.0,96489.0,0.5681126]
[1740217718073,0.06246858,96490.0,96489.0,0.5681126]
[1740217718972,0.26978118,96490.0,96489.0,0.5681126]
[1740217719168,0.05187421,96492.0,96489.0,0.5681126]
[1740217719169,0.25918461,96492.0,96491.0,0.2073105]
[1740217719368,0.20735541,96492.0,96491.0,0.2073105]
[1740217719573,0.20735541,96492.0,96491.0,0.2373105]
[1740217720580,4.711e-05,96492.0,96491.0,0.2373105]
[1740217726371,4.711e-05,96492.0,96491.0,0.2704105]
[1740217728374,4.711e-05,96492.0,96491.0,0.0631]
[1740217728574,0.68364711,96492.0,96483.0,0.1926857]
[1740217728878,0.2073492,96473.0,96472.0,0.20750679]
[1740217729181,0.2073486,96476.0,96475.0,0.2073449]
[1740217729378,0.3097486,96476.0,96475.0,0.2073449]
[1740217730167,0.2073486,96476.0,96475.0,0.2073449]
[1740217730481,0.2173486,96476.0,96475.0,0.2073449]
[1740217730676,0.2073486,96476.0,96475.0,0.2073449]
[1740217731079,0.2173486,96476.0,96475.0,0.2073449]
[1740217731582,0.2203486,96476.0,96475.0,0.2073449]
[1740217731977,0.2223486,96476.0,96475.0,0.2073449]
[1740217732173,0.2203486,96476.0,96475.0,0.2073449]
[1740217732772,0.2183486,96476.0,96475.0,0.2073449]
[1740217732974,0.2193486,96476.0,96475.0,0.2073449]
[1740217733286,0.2183486,96476.0,96475.0,0.2073449]
[1740217733679,0.2183486,96476.0,96475.0,0.2390449]
[1740217734986,0.2193486,96476.0,96475.0,0.2390449]
[1740217735181,0.2183486,96476.0,96475.0,0.2390449]
[1740217735388,0.2093486,96476.0,96475.0,0.2390449]
[1740217735579,0.2193486,96476.0,96475.0,0.2390449]
[1740217735982,0.2093486,96476.0,96475.0,0.2390449]
[1740217736190,0.2193486,96476.0,96475.0,0.2390449]
[1740217736682,0.002,96476.0,96475.0,0.2390449]
[1740217736887,0.012,96476.0,96475.0,0.2390449]
[1740217737082,0.002,96476.0,96475.0,0.2390449]
[1740217738589,0.14853632,96476.0,96475.0,0.2410449]
[1740217739084,0.14753632,96476.0,96475.0,0.2410449]
[1740217739286,0.14753632,96476.0,96475.0,0.2440449]
[1740217740182,0.13753632,96476.0,96475.0,0.2440449]
[1740217741395,0.14753632,96476.0,96475.0,0.2440449]
[1740217742378,0.01,96476.0,96475.0,0.2440449]
[1740217742775,0.01,96476.0,96475.0,0.2410449]
[1740217742983,0.01,96476.0,96475.0,0.2440449]
[1740217744688,0.2591542,96489.0,96475.0,0.0367]
[1740217744884,0.0518301,96487.0,96486.0,0.2591466]
[1740217745186,0.0618301,96487.0,96486.0,0.2591466]
[1740217746091,0.2701492,96487.0,96486.0,0.2591466]
[1740217746488,0.2711492,96487.0,96486.0,0.2591466]
[1740217747382,0.012,96487.0,96486.0,0.2591466]
[1740217747585,0.2183191,96487.0,96486.0,0.2591466]
[1740217747789,0.2193191,96487.0,96486.0,0.2591466]
[1740217748383,0.2173191,96487.0,96486.0,0.2591466]
[1740217748585,0.002,96487.0,96486.0,0.2591466]
[1740217748986,0.001,96487.0,96486.0,0.2591466]
[1740217749197,0.002,96487.0,96486.0,0.2591466]
[1740217750498,0.00204511,96487.0,96486.0,0.2591466]
[1740217752893,0.20936421,96487.0,96486.0,0.2591466]
[1740217755794,0.00204511,96487.0,96486.0,0.2591466]
[1740217757390,0.20936421,96487.0,96486.0,0.2591466]
[1740217757995,0.00204511,96487.0,96486.0,0.2591466]
[1740217758795,0.05245666,96487.0,96486.0,0.2591466]
[1740217759694,0.05245666,96487.0,96486.0,0.2895466]
[1740217763902,1e-08,96492.0,96486.0,0.0922297]
[1740217764202,1e-08,96492.0,96491.0,0.2073105]
[1740217764400,1e-08,96492.0,96491.0,0.3097505]
[1740217764994,1e-08,96492.0,96491.0,0.6705505]
[1740217764995,0.00100001,96492.0,96491.0,0.6705505]
[1740217765394,0.00400001,96492.0,96491.0,0.6705505]
[1740217765802,0.00300001,96492.0,96491.0,0.6705505]
[1740217766003,0.00600001,96492.0,96491.0,0.6705505]
[1740217768589,0.1552353,96496.0,96495.0,0.2073019]
[1740217769106,0.1552353,96496.0,96495.0,0.2716019]
[1740217769800,0.18628236,96503.0,96495.0,0.2716019]
[1740217769801,0.18628236,96503.0,96502.0,0.2072868]
[1740217769997,0.18628236,96503.0,96502.0,0.6705268]
[1740217770201,0.18628236,96503.0,96502.0,0.6805268]
[1740217770406,0.2172936,96516.0,96502.0,0.48354886]
[1740217770599,0.45559074,96517.0,96513.0,0.5680632]
[1740217770899,0.24833554,96517.0,96513.0,0.6300632]
[1740217771994,0.24833554,96517.0,96513.0,0.6310632]
[1740217772606,0.24833554,96517.0,96513.0,0.6320632]
[1740217773503,0.24833554,96517.0,96513.0,0.6642632]
[1740217774805,0.21716559,96523.0,96513.0,0.6642632]
[1740217775202,0.42440879,96523.0,96513.0,0.6642632]
[1740217776298,0.21716559,96523.0,96513.0,0.6642632]
[1740217780303,0.39317871,96527.0,96513.0,0.6642632]
[1740217780714,0.2072411,96524.0,96513.0,0.457]
[1740217781010,0.2072411,96524.0,96523.0,0.2072417]
[1740217781403,0.2072411,96524.0,96523.0,0.2382417]
[1740217782209,0.2072411,96524.0,96523.0,0.2392417]
[1740217782715,0.2072411,96524.0,96523.0,0.2402417]
[1740217785816,0.18594481,96527.0,96523.0,0.033]
[1740217786021,0.2072361,96526.0,96525.0,0.2590445]
[1740217786214,0.2590453,96526.0,96525.0,0.2590445]
[1740217786612,0.2072361,96526.0,96525.0,0.2590445]
[1740217787715,0.2072361,96526.0,96525.0,0.2600445]
[1740217787916,0.43196448,96526.0,96525.0,0.2600445]
[1740217788613,0.43196448,96526.0,96525.0,0.2610445]
[1740217789415,0.43196448,96526.0,96525.0,0.2092353]
[1740217790119,0.43196448,96526.0,96525.0,0.002]
[1740217791023,0.43196448,96526.0,96525.0,0.2092375]
[1740217791519,0.43196448,96526.0,96525.0,0.002]
[1740217793314,0.2072563,96517.0,96514.0,0.00015541]
[1740217793618,0.3059568,96516.0,96515.0,0.2072574]
[1740217794026,0.3059568,96516.0,96514.0,0.20741541]
[1740217794221,0.2072589,96515.0,96514.0,0.00015541]
[1740217794415,0.0987,96516.0,96514.0,0.00115541]
[1740217794724,0.3059576,96516.0,96515.0,0.2082589]
[1740217795110,0.0987,96516.0,96515.0,0.2082589]
[1740217795315,0.0987,96516.0,96515.0,0.2072589]
[1740217795920,0.0987,96516.0,96515.0,0.2082589]
[1740217797123,0.0997,96516.0,96515.0,0.2092589]
[1740217800718,0.3069568,96516.0,96515.0,0.2092589]
[1740217801714,0.0997,96516.0,96515.0,0.2092589]
[1740217801918,0.0664,96516.0,96515.0,0.2092589]
[1740217802326,0.20456611,96516.0,96515.0,0.2092589]
[1740217802624,0.41182291,96516.0,96515.0,0.2092589]
[1740217803216,0.20456611,96516.0,96515.0,0.2092589]
[1740217803416,0.41182291,96516.0,96515.0,0.2092589]
[1740217803927,0.20456611,96516.0,96515.0,0.2092589]
[1740217804622,0.41182291,96516.0,96515.0,0.2092589]
[1740217804822,0.20456611,96516.0,96515.0,0.2092589]
[1740217805223,0.30646762,96516.0,96515.0,0.2092589]
[1740217809827,0.27406762,96516.0,96515.0,0.2092589]
[1740217811131,0.48132442,96516.0,96515.0,0.2092589]
[1740217811330,0.27406762,96516.0,96515.0,0.2092589]
[1740217812720,0.08439995,96516.0,96515.0,0.2092589]
[1740217813926,0.05139995,96516.0,96515.0,0.2092589]
[1740217819039,0.13774058,96516.0,96515.0,0.2092589]
[1740217821037,0.34499738,96516.0,96515.0,0.2092589]
[1740217821238,0.13774058,96516.0,96515.0,0.2092589]
[1740217821638,0.34499738,96516.0,96515.0,0.002]
[1740217822040,0.34499738,96516.0,96515.0,0.2092589]
[1740217822442,0.34499738,96516.0,96515.0,0.002]
[1740217822939,0.13774058,96516.0,96515.0,0.2092589]
[1740217823332,0.34499738,96516.0,96515.0,0.2092589]
[1740217823937,0.13774058,96516.0,96515.0,0.2092589]
[1740217825434,0.34499738,96516.0,96515.0,0.2092589]
[1740217825935,0.13774058,96516.0,96515.0,0.2092589]
[1740217826136,0.23951672,96516.0,96515.0,0.2092589]
[1740217826436,0.44677542,96516.0,96515.0,0.2072589]
[1740217826835,0.23951672,96516.0,96515.0,0.2072589]
[1740217827142,0.44677352,96516.0,96515.0,0.2072589]
[1740217828130,0.23951672,96516.0,96515.0,0.2072589]
[1740217828333,0.23951672,96516.0,96514.0,0.00015541]
[1740217828538,0.2072589,96515.0,96514.0,0.20741651]
[1740217828936,0.23951672,96516.0,96515.0,0.2072589]
[1740217829138,0.2072589,96515.0,96514.0,0.00015541]
[1740217829639,0.2072589,96515.0,96514.0,0.20841651]
[1740217829942,0.2072589,96515.0,96514.0,0.00115541]
[1740217830141,0.2072589,96515.0,96514.0,0.20841651]
[1740217830343,0.2072589,96515.0,96514.0,0.00215541]
[1740217830533,0.2072589,96515.0,96514.0,0.20941651]
[1740217830728,0.2072589,96515.0,96514.0,0.00215541]
[1740217830932,0.2092589,96515.0,96514.0,0.26123171]
[1740217831342,0.003,96515.0,96514.0,0.26123171]
[1740217831533,0.2102589,96515.0,96514.0,0.20941651]
[1740217831735,0.2102589,96515.0,96514.0,0.00215541]
[1740217831934,0.003,96515.0,96514.0,0.20941651]
[1740217832134,0.35366095,96515.0,96514.0,0.20941651]
[1740217833536,0.56091985,96515.0,96514.0,0.20941651]
[1740217833840,0.35366095,96515.0,96509.0,0.0303]
[1740217834138,0.2072697,96510.0,96509.0,0.0303]
[1740217834933,0.207268,96511.0,96509.0,0.0313]
[1740217835134,0.051816,96513.0,96509.0,0.0313]
[1740217835135,0.2072651,96513.0,96512.0,0.2072654]
[1740217835330,0.13406,96514.0,96511.0,0.0518168]
[1740217835331,0.3096217,96514.0,96511.0,0.0518168]
[1740217835544,0.3096217,96514.0,96512.0,0.2072654]
[1740217835745,0.2072632,96513.0,96512.0,0.2072654]
[1740217836044,0.23896405,96514.0,96511.0,0.0518168]
[1740217836240,0.44622575,96514.0,96513.0,0.2072632]
[1740217836447,0.44722575,96514.0,96513.0,0.2072632]
[1740217836848,0.23996405,96514.0,96511.0,0.001]
[1740217837042,0.2590812,96513.0,96512.0,0.2072647]
[1740217837545,0.2072654,96512.0,96511.0,0.002]
[1740217837750,0.2072654,96512.0,96511.0,0.001]
[1740217837946,0.2072654,96512.0,96510.0,0.2072675]
[1740217838142,0.2072675,96511.0,96510.0,0.2072675]
[1740217838449,0.0518169,96511.0,96509.0,0.0303]
[1740217838641,0.2072697,96510.0,96509.0,0.0303]
[1740217838943,0.2072677,96511.0,96510.0,0.2072678]
[1740217839148,0.22042263,96512.0,96511.0,0.2072675]
[1740217839350,0.01315713,96512.0,96509.0,0.0303]
[1740217839551,0.2072675,96511.0,96509.0,0.2375708]
[1740217839847,0.003,96511.0,96509.0,0.0313]
[1740217840057,0.003,96511.0,96510.0,0.2072697]
[1740217841249,0.005,96511.0,96510.0,0.2072697]
[1740217841549,0.002,96511.0,96510.0,0.2072697]
[1740217841745,0.002,96511.0,96509.0,0.0323]
[1740217841953,0.209268,96511.0,96510.0,0.2072697]
[1740217842147,0.002,96511.0,96510.0,0.2072697]
[1740217842344,0.004,96511.0,96510.0,0.2082697]
[1740217842546,0.2112675,96511.0,96510.0,0.001]
[1740217842742,0.2112675,96511.0,96510.0,0.002]
[1740217842942,0.2112675,96511.0,96510.0,0.2082697]
[1740217843852,0.34787155,96511.0,96510.0,0.2082697]
[1740217844646,0.13860405,96511.0,96510.0,0.2082697]
[1740217844848,0.14060405,96511.0,96510.0,0.2092697]
[1740217849957,0.14060405,96511.0,96510.0,0.2408697]
[1740217854551,0.22175568,96511.0,96510.0,0.2408697]
[1740217857754,0.27215563,96511.0,96510.0,0.2408697]
[1740217861467,0.35907355,96511.0,96510.0,0.2408697]
[1740217865775,0.05439995,96511.0,96510.0,0.2408697]
[1740217869382,0.004,96511.0,96510.0,0.2408697]
[1740217870384,0.34208915,96518.0,96517.0,0.2072546]
[1740217870592,0.34208915,96518.0,96517.0,0.5680546]
[1740217870883,0.34208915,96518.0,96517.0,0.6304546]
[1740217871578,0.34408915,96518.0,96517.0,0.6314546]
[1740217871885,0.34608915,96518.0,96517.0,0.6324546]
[1740217873080,0.004,96518.0,96517.0,0.6324546]
[1740217881301,0.05438989,96518.0,96517.0,0.6324546]
[1740217884993,0.24085178,96518.0,96517.0,0.6324546]
[1740217888295,0.004,96518.0,96517.0,0.6324546]
[1740217890903,0.00015513,96519.0,96517.0,0.4252]
[1740217891099,0.00015513,96519.0,96518.0,0.2072525]
[1740217892203,0.00015513,96519.0,96518.0,0.2082525]
[1740217892508,0.00015513,96519.0,96518.0,0.2092525]
[1740217894800,0.13801331,96519.0,96518.0,0.2092525]
[1740217899911,0.05054579,96519.0,96518.0,0.2092525]
[1740217903409,0.00015513,96519.0,96518.0,0.2092525]
[1740217907511,0.05054579,96519.0,96518.0,0.2092525]
[1740217918914,0.13783005,96519.0,96518.0,0.2092525]
[1740217922019,0.05054579,96519.0,96518.0,0.2092525]
[1740217926025,0.00015513,96519.0,96518.0,0.2092525]
[1740217929730,0.15566349,96519.0,96518.0,0.2092525]
[1740217930433,0.01060811,96536.0,96518.0,0.012]
[1740217930618,0.24905568,96538.0,96537.0,0.2072117]
[1740217931123,0.24905568,96538.0,96537.0,0.2373117]
[1740217932023,0.24905568,96538.0,96537.0,0.2383117]
[1740217932932,0.24905568,96538.0,96537.0,0.2393117]
[1740217933229,0.3704159,96538.0,96537.0,0.2393117]
[1740217933426,0.3391159,96538.0,96537.0,0.2393117]
[1740217936532,0.07097547,96538.0,96537.0,0.2393117]
[1740217940747,0.05038455,96539.0,96537.0,0.0321]
[1740217941044,0.05038455,96539.0,96538.0,0.2590118]
[1740217941829,0.25759195,96539.0,96538.0,0.2590118]
[1740217942038,0.05038455,96539.0,96538.0,0.2590118]
[1740217942237,0.08118455,96539.0,96538.0,0.2590118]
[1740217942934,0.28839195,96539.0,96538.0,0.2590118]
[1740217943527,0.28839195,96539.0,96538.0,0.2600118]
[1740217944038,0.28839195,96539.0,96538.0,0.2610118]
[1740217947345,0.28839195,96539.0,96538.0,0.2600118]
[1740217947541,0.28839195,96539.0,96538.0,0.2610118]
[1740217948437,0.28839195,96539.0,96538.0,0.2092095]
[1740217949239,0.28839195,96539.0,96538.0,0.2082095]
[1740217949442,0.36293537,96539.0,96538.0,0.2092095]
[1740217951635,0.39513537,96539.0,96538.0,0.2092095]
[1740217953643,0.50689678,96539.0,96538.0,0.2092095]
[1740217954144,0.47469678,96539.0,96538.0,0.2092095]
[1740217957838,0.25759195,96539.0,96538.0,0.2092095]
[1740217964444,0.27666535,96539.0,96538.0,0.2092095]
[1740217967844,0.27666535,96539.0,96538.0,0.002]
[1740217968043,0.63746535,96539.0,96538.0,0.002]
[1740217968241,0.3582602,96539.0,96538.0,0.2092095]
[1740217972858,0.45364709,96539.0,96538.0,0.2092095]
[1740217974466,0.45364709,96539.0,96538.0,0.002]
[1740217974656,0.45364709,96539.0,96538.0,0.2092095]
[1740217976067,0.2072074,96539.0,96538.0,0.2092095]
[1740217977466,0.2072074,96539.0,96538.0,0.002]
[1740217980265,0.2072074,96539.0,96538.0,0.2092095]
[1740217980666,0.2072074,96539.0,96538.0,0.002]
[1740217980969,0.2072074,96539.0,96538.0,0.2092095]
[1740217981269,0.2072074,96539.0,96538.0,0.002]
[1740217984772,0.35721224,96539.0,96538.0,0.002]
[1740217989070,0.35721224,96539.0,96538.0,0.2092095]
[1740217989663,0.35721224,96539.0,96538.0,0.002]
[1740217991472,0.35721224,96539.0,96538.0,0.2092095]
[1740217991963,0.2072074,96539.0,96538.0,0.2092095]
[1740217995574,0.39372423,96539.0,96538.0,0.2092095]
[1740217996375,0.39372423,96539.0,96538.0,0.22540808]
[1740217998065,0.39372423,96539.0,96538.0,0.22540764]
[1740217999078,0.39372423,96539.0,96538.0,0.2092095]
[1740217999469,0.2072074,96539.0,96538.0,0.2092095]
[1740218006675,0.26723639,96539.0,96538.0,0.2092095]
[1740218015676,0.2072074,96539.0,96538.0,0.2092095]
[1740218018285,0.2072074,96539.0,96538.0,0.002]
[1740218018590,0.0518013,96540.0,96528.0,0.25918831]
[1740218018591,0.2072289,96529.0,96528.0,0.25918831]
[1740218019077,0.2374289,96529.0,96528.0,0.20738101]
[1740218019284,0.2374289,96529.0,96528.0,0.00015541]
[1740218019474,0.2374289,96529.0,96528.0,0.20738641]
[1740218020485,0.2384289,96529.0,96528.0,0.20738641]
[1740218020678,0.2394289,96529.0,96528.0,0.20738641]
[1740218020873,0.2394289,96529.0,96528.0,0.00015541]
[1740218021282,0.2394289,96529.0,96528.0,0.20738641]
[1740218024378,0.38401716,96529.0,96528.0,0.20738641]
[1740218024976,0.38401716,96529.0,96528.0,0.00015541]
[1740218025181,0.38401716,96529.0,96528.0,0.20738641]
[1740218025475,0.38401716,96529.0,96528.0,0.00015541]
[1740218025681,0.38401716,96529.0,96528.0,0.20738641]
[1740218028785,0.39463245,96529.0,96528.0,0.20738641]
[1740218029987,0.36443245,96529.0,96528.0,0.20738641]
[1740218032782,0.002,96529.0,96528.0,0.20738641]
[1740218034486,0.002,96529.0,96528.0,0.21803076]
[1740218040394,0.002,96529.0,96528.0,0.20738641]
[1740218040983,0.002,96529.0,96528.0,0.21789468]
[1740218044785,0.002,96529.0,96528.0,0.57869468]
[1740218052592,0.002,96529.0,96528.0,0.59489182]
[1740218053395,0.002,96529.0,96528.0,0.57869468]
[1740218056707,0.002,96529.0,96528.0,0.67030641]
[1740218058411,0.2092289,96529.0,96528.0,0.67030641]
[1740218060305,0.2092289,96529.0,96528.0,0.6806423]
[1740218060605,0.002,96529.0,96528.0,0.6806423]
[1740218060808,0.2092289,96529.0,96528.0,0.6806423]
[1740218061294,0.002,96529.0,96528.0,0.6806423]
[1740218061707,0.2092289,96529.0,96528.0,0.6806423]
[1740218061907,0.002,96529.0,96528.0,0.6806423]
[1740218062100,0.2092289,96529.0,96528.0,0.5785223]
[1740218063310,0.002,96529.0,96528.0,0.5785223]
[1740218063505,0.002,96529.0,96528.0,0.5947203]
[1740218063710,0.002,96529.0,96528.0,0.5785223]
[1740218064210,0.2092289,96529.0,96528.0,0.5785223]
[1740218064903,0.2092289,96529.0,96528.0,0.56818641]
[1740218065412,0.002,96529.0,96528.0,0.56818641]
[1740218065603,0.2092289,96529.0,96528.0,0.56818641]
[1740218065801,0.002,96529.0,96528.0,0.57868165]
[1740218067112,0.002,96529.0,96528.0,0.59487893]
[1740218068809,0.002,96529.0,96528.0,0.61107621]
[1740218069011,0.002,96529.0,96528.0,0.79682994]
[1740218069512,0.002,96529.0,96528.0,0.78063266]
[1740218072415,0.002,96529.0,96528.0,0.59487893]
[1740218073809,0.002,96529.0,96528.0,0.61107621]
[1740218074415,0.002,96529.0,96528.0,0.59487893]
[1740218074620,0.002,96529.0,96528.0,0.61107621]
[1740218075725,0.002,96529.0,96528.0,0.59487893]
[1740218077325,0.002,96529.0,96528.0,0.61107621]
[1740218078620,0.002,96529.0,96528.0,0.59487893]
[1740218079414,0.002,96529.0,96528.0,0.57868165]
[1740218086715,0.002,96529.0,96528.0,0.59487874]
[1740218091929,0.002,96529.0,96528.0,0.57868165]
[1740218094233,0.002,96529.0,96528.0,0.82642495]
[1740218094928,0.0323,96535.0,96528.0,0.61919395]
[1740218095135,0.0323,96535.0,96534.0,0.2072181]
[1740218096231,0.0343,96535.0,96534.0,0.2388181]
[1740218096620,0.0343,96535.0,96534.0,0.2714181]
[1740218097126,0.0343,96535.0,96534.0,0.2724181]
[1740218100140,0.0343,96535.0,96534.0,0.3745381]
[1740218103640,0.18643965,96547.0,96536.0,0.0518034]
[1740218103828,0.18643965,96547.0,96546.0,0.5679924]
[1740218104439,0.18643965,96547.0,96546.0,0.6614924]
[1740218105339,0.18643965,96547.0,96546.0,0.6624924]
[1740218105936,0.2204,96556.0,96555.0,0.2071731]
[1740218106645,0.2204,96556.0,96555.0,0.5982731]
[1740218106831,0.18643965,96557.0,96556.0,0.2071709]
[1740218107142,0.18643965,96557.0,96556.0,0.21777783]
[1740218107531,0.0328,96569.0,96556.0,0.01060693]
[1740218107736,0.0328,96569.0,96568.0,0.2071452]
[1740218107939,0.0328,96569.0,96568.0,0.5679452]
[1740218108441,0.0328,96569.0,96568.0,0.5979452]
[1740218109034,0.0328,96569.0,96568.0,0.5989452]
[1740218109340,0.239943,96569.0,96568.0,0.5989452]
[1740218110334,0.239943,96569.0,96568.0,0.5999452]
[1740218111532,0.239943,96569.0,96568.0,0.5699452]
[1740218111737,0.239943,96569.0,96568.0,0.002]
[1740218111943,0.272143,96569.0,96568.0,0.002]
[1740218112730,0.272143,96569.0,96568.0,0.2091452]
[1740218114635,0.272143,96569.0,96568.0,0.002]
[1740218117331,0.376463,96569.0,96568.0,0.002]
[1740218118231,0.596863,96569.0,96568.0,0.002]
[1740218121047,0.596703,96569.0,96568.0,0.002]
[1740218121348,0.596663,96569.0,96568.0,0.002]
[1740218123047,0.596743,96569.0,96568.0,0.002]
[1740218123550,0.492543,96569.0,96568.0,0.002]
[1740218127050,0.525343,96569.0,96568.0,0.002]
[1740218127356,0.634423,96569.0,96568.0,0.002]
[1740218132167,0.602223,96569.0,96568.0,0.002]
[1740218134965,0.427543,96569.0,96568.0,0.002]
[1740218135274,0.427543,96569.0,96568.0,0.2091452]
[1740218135660,0.2204,96569.0,96568.0,0.2396452]
[1740218136059,0.3608,96572.0,96569.0,0.0517852]
[1740218136269,0.5679366,96572.0,96571.0,0.2071387]
[1740218137070,0.5679366,96572.0,96569.0,0.0323]
[1740218137071,0.2071409,96570.0,96569.0,0.0323]
[1740218137373,0.2071409,96570.0,96569.0,0.239443]
[1740218138468,0.2071409,96570.0,96569.0,0.0333]
[1740218138668,0.2071409,96570.0,96569.0,0.240443]
[1740218139079,0.2071409,96570.0,96569.0,0.0333]
[1740218139274,0.2071409,96570.0,96569.0,0.241443]
[1740218139472,0.2071409,96570.0,96569.0,0.0343]
[1740218143179,0.2071409,96570.0,96569.0,0.241443]
[1740218152589,0.0517819,96577.0,96569.0,0.241443]
[1740218152590,0.2071017,96590.0,96589.0,0.2070957]
[1740218152774,0.2071023,96588.0,96587.0,0.5679044]
[1740218153179,0.2071023,96588.0,96587.0,0.3608]
[1740218153381,0.2390023,96588.0,96587.0,0.3608]
[1740218154888,0.2390023,96588.0,96587.0,0.3618]
[1740218155882,0.2390023,96588.0,96587.0,0.3628]
[1740218157491,0.5998023,96588.0,96587.0,0.002]
[1740218159591,0.3927,96588.0,96587.0,0.2091044]
[1740218159791,0.2071023,96588.0,96587.0,0.002]
[1740218160495,0.2071173,96581.0,96580.0,0.00015533]